bitfinex/quotes_ETHUSD_20251107
["timestamp","ask_amount","ask_price","bid_price","bid_amount"]
[1762490742357,3.14873025,3334.3,3334.2,0.4921]
[1762490742593,4.40844225,3334.3,3334.2,0.4921]
[1762490743193,4.40844225,3334.3,3334.1,0.001]
[1762490743194,4.2589322,3334.2,3334.1,0.001]
[1762490743408,4.7232322,3334.2,3334.1,0.001]
[1762490744029,5.34292387,3334.2,3334.1,0.001]
[1762490744234,5.5186362,3334.2,3334.1,0.001]
[1762490745707,4.66470608,3333.9,3333.8,0.001]
[1762490746018,5.05000608,3333.9,3333.8,0.001]
[1762490746221,5.51510608,3333.9,3333.8,0.001]
[1762490746429,5.05000608,3333.9,3333.8,0.001]
[1762490746719,5.51510608,3333.9,3333.8,0.001]
[1762490747290,1.259712,3333.9,3333.8,0.4931]
[1762490747491,2.99949008,3333.9,3333.8,0.4931]
[1762490747808,0.1957,3334.9,3333.8,0.9685]
[1762490747809,2.99876086,3334.8,3333.8,0.9685]
[1762490748122,1.259712,3334.1,3334.0,0.4921]
[1762490748523,0.6608,3334.9,3334.0,0.4921]
[1762490748730,1.259712,3334.4,3334.1,0.688]
[1762490748888,2.99901172,3334.5,3334.1,0.688]
[1762490749089,2.99875145,3334.8,3334.4,0.4921]
[1762490749090,4.25846022,3334.8,3334.4,0.4921]
[1762490749320,4.25846022,3334.8,3334.2,0.4754]
[1762490749321,4.25846022,3334.8,3334.7,0.4921]
[1762490749626,3.00062807,3334.9,3334.7,0.4921]
[1762490749826,2.99868058,3334.8,3334.5,0.4754]
[1762490750028,2.99879177,3334.7,3334.5,0.4754]
[1762490750203,2.99886043,3334.6,3334.5,0.4754]
[1762490750586,2.99886043,3334.6,3334.5,0.9675]
[1762490751122,2.99886043,3334.6,3334.5,0.4921]
[1762490753348,2.99904614,3334.4,3334.1,0.1959]
[1762490753632,2.99904614,3334.4,3334.1,0.6713]
[1762490753814,2.99904614,3334.4,3334.3,0.4921]
[1762490754197,3.14864614,3334.4,3334.3,0.4921]
[1762490755735,2.99917145,3334.3,3334.1,0.1959]
[1762490755954,1.259712,3334.6,3333.9,0.1959]
[1762490755955,0.1496,3334.1,3333.9,0.1959]
[1762490756251,1.409312,3333.9,3333.8,0.001]
[1762490756410,3.14909008,3333.9,3333.8,0.001]
[1762490756610,3.14909008,3333.9,3333.8,0.4931]
[1762490757242,3.62779008,3333.9,3333.8,0.001]
[1762490757543,3.14909008,3333.9,3333.8,0.4931]
[1762490757743,3.14909008,3333.9,3333.8,0.001]
[1762490757744,4.01129008,3333.9,3333.8,0.001]
[1762490758249,3.62779008,3333.9,3333.8,0.001]
[1762490760137,5.67650608,3333.9,3333.8,0.001]
[1762490765172,5.14340608,3333.9,3333.8,0.001]
[1762490767340,5.52690608,3333.9,3333.8,0.001]
[1762490767552,5.14340608,3333.9,3333.8,0.001]
[1762490767749,2.99949008,3333.9,3333.8,0.9685]
[1762490767951,2.99949008,3333.9,3333.8,0.001]
[1762490768134,3.39649008,3333.9,3333.8,0.001]
[1762490768338,5.52610608,3333.9,3333.8,0.001]
[1762490768758,5.99653681,3333.9,3333.8,0.001]
[1762490769053,5.52610608,3333.9,3333.8,0.001]
[1762490774457,5.06170608,3333.9,3333.8,0.001]
[1762490774843,5.06170608,3333.9,3333.8,0.4887]
[1762490774844,4.66470608,3333.9,3333.8,0.4887]
[1762490775083,4.25920208,3333.9,3333.8,0.4887]
[1762490775797,4.25920208,3333.9,3333.8,0.9826]
[1762490776289,4.25920208,3333.9,3333.8,0.4887]
[1762490778999,4.66310208,3333.9,3333.8,0.001]
[1762490780135,5.52620608,3333.9,3333.8,0.001]
[1762490782224,5.99670141,3333.9,3333.8,0.001]
[1762490785195,5.64641193,3333.9,3333.8,0.001]
[1762490787011,5.06860608,3333.9,3333.8,0.001]
[1762490788357,5.53908418,3333.9,3333.8,0.001]
[1762490788579,5.99668418,3333.9,3333.8,0.001]
[1762490788782,5.53908418,3333.9,3333.8,0.001]
[1762490790545,2.99949008,3333.9,3333.8,0.9826]
[1762490793574,2.99949008,3333.9,3333.8,0.4887]
[1762490794234,3.40339008,3333.9,3333.8,0.001]
[1762490794545,3.80889408,3333.9,3333.8,0.001]
[1762490794749,5.06860608,3333.9,3333.8,0.001]
[1762490795054,5.52620608,3333.9,3333.8,0.001]
[1762490795661,5.06860608,3333.9,3333.8,0.001]
[1762490796979,4.66470608,3333.9,3333.8,0.4887]
[1762490797178,4.66470608,3333.9,3333.8,0.001]
[1762490797476,5.06910608,3333.9,3333.8,0.001]
[1762490797774,1.259712,3333.9,3333.8,0.9826]
[1762490797961,1.259712,3333.9,3333.8,1.38104316]
[1762490798354,1.259712,3333.9,3333.8,0.9826]
[1762490798555,0.1516,3334.0,3333.8,3.98218005]
[1762490798752,0.1516,3334.0,3333.9,3.98289008]
[1762490798952,0.1516,3334.4,3333.9,1.133]
[1762490799151,0.1516,3334.4,3333.8,0.0309958]
[1762490799152,0.002,3334.4,3334.3,3.68843025]
[1762490799344,0.002,3334.4,3334.3,1.91183536]
[1762490799553,0.002,3334.4,3334.3,4.91096561]
[1762490799757,0.002,3334.6,3334.5,2.99895036]
[1762490799956,0.002,3334.6,3334.5,3.52523986]
[1762490800253,0.002,3334.6,3334.5,4.16193986]
[1762490800579,0.002,3334.9,3334.8,2.99868058]
[1762490800779,0.002,3334.9,3334.8,3.61048058]
[1762490800943,0.002,3334.9,3334.8,4.07088058]
[1762490801948,0.002,3335.3,3335.2,2.99832094]
[1762490802160,0.002,3335.3,3335.2,3.46052094]
[1762490802459,0.002,3335.3,3335.2,4.65263631]
[1762490802778,0.002,3335.3,3335.2,4.62265311]
[1762490802942,0.002,3335.3,3335.2,4.77225311]
[1762490803142,0.002,3335.8,3335.7,2.99787151]
[1762490803378,0.002,3335.8,3335.7,3.60967151]
[1762490803587,0.002,3335.8,3335.7,4.58423407]
[1762490803888,0.002,3335.8,3335.7,4.73383407]
[1762490804294,1e-08,3336.0,3335.8,3.92038164]
[1762490804457,0.12006261,3337.6,3336.1,0.4622]
[1762490804663,0.1496,3337.0,3336.6,0.4622]
[1762490804864,1.259712,3336.8,3336.6,0.4622]
[1762490805065,1.409312,3336.8,3336.6,0.4622]
[1762490805292,1.409312,3336.8,3336.7,0.4622]
[1762490805592,0.1496,3336.8,3336.7,0.4622]
[1762490805805,0.1496,3336.8,3336.7,0.9226]
[1762490807237,1.409312,3336.8,3336.7,0.4622]
[1762490808480,0.1496,3336.8,3336.7,0.9226]
[1762490809576,1.409312,3336.8,3336.7,0.9226]
[1762490810515,1.409312,3336.8,3336.7,0.4622]
[1762490810715,3.14648324,3336.8,3336.7,0.4622]
[1762490811575,4.40619524,3336.8,3336.7,0.4622]
[1762490812294,4.40619524,3336.8,3336.3,0.4604]
[1762490812295,4.25671673,3336.7,3336.3,0.4604]
[1762490812495,2.99712888,3336.6,3336.0,0.4604]
[1762490812795,0.1496,3336.4,3336.2,2.99737611]
[1762490812994,0.1496,3336.4,3336.1,3.45783256]
[1762490813194,0.1496,3336.4,3336.3,0.4622]
[1762490813612,0.1496,3336.4,3336.3,0.9226]
[1762490813778,0.1496,3336.4,3336.3,0.4622]
[1762490814302,0.1496,3336.4,3336.3,0.9226]
[1762490816545,0.1496,3336.4,3336.3,0.4622]
[1762490816846,0.1496,3336.4,3336.3,0.9226]
[1762490817050,2.99638172,3337.4,3336.3,3.9198957]
[1762490817214,0.1496,3336.7,3336.5,2.99708724]
[1762490817533,0.1496,3336.7,3336.6,2.99706287]
[1762490817745,0.1496,3336.7,3336.6,3.45926287]
[1762490818037,2.99641307,3337.4,3336.6,0.9226]
[1762490818201,0.1496,3337.3,3336.8,2.99688324]
[1762490818604,0.1496,3337.3,3337.2,0.4622]
[1762490819323,0.1496,3337.3,3337.2,0.9226]
[1762490821538,0.1496,3337.3,3337.1,0.1836]
[1762490821539,1.767212,3337.3,3336.8,3.45726949]
[1762490821746,0.1496,3337.3,3336.9,0.4604]
[1762490822041,0.1496,3337.3,3337.2,0.4622]
[1762490822258,1.409312,3337.3,3337.2,0.4622]
[1762490822679,1.409312,3337.3,3337.2,0.9226]
[1762490822680,0.1496,3337.3,3337.2,0.9226]
[1762490823174,0.5075,3337.3,3336.7,0.1836]
[1762490823381,1.259712,3337.0,3336.7,0.1836]
[1762490823535,1.259712,3337.0,3336.5,0.1496]
[1762490823536,1.409312,3337.0,3336.5,0.1496]
[1762490823735,3.14632314,3337.0,3336.5,0.61]
[1762490823937,2.99679343,3336.9,3336.5,0.4604]
[1762490824168,0.1496,3336.8,3336.5,0.4604]
[1762490825265,3.14655806,3336.8,3336.4,0.1836]
[1762490825465,0.3579,3336.5,3336.1,0.001]
[1762490825648,0.1496,3336.3,3336.1,0.001]
[1762490827687,3.14700313,3336.3,3336.1,0.001]
[1762490827860,1.767212,3336.2,3336.1,0.001]
[1762490828180,3.50492221,3336.2,3336.1,0.001]
[1762490828476,1.767212,3336.2,3336.1,0.001]
[1762490829148,5.23153421,3336.2,3336.1,0.001]
[1762490829939,5.63703821,3336.2,3336.1,0.001]
[1762490831336,1.767212,3336.2,3336.1,0.001]
[1762490831676,1.409312,3336.2,3336.1,1.1912]
[1762490831839,1.409312,3336.2,3336.1,1.6101874]
[1762490832035,1.409312,3336.2,3336.1,1.1912]
[1762490832675,1.259712,3336.2,3336.1,4.18871206]
[1762490832883,2.99645636,3337.3,3336.1,4.18864772]
[1762490833183,2.99826143,3337.5,3336.8,0.4927]
[1762490833184,1.259712,3337.1,3336.8,0.4927]
[1762490833578,1.259712,3337.1,3337.0,0.4927]
[1762490833743,2.99645815,3337.3,3337.0,0.4927]
[1762490833940,2.99645815,3337.3,3337.1,0.1981]
[1762490834282,1.259712,3337.3,3337.2,0.4927]
[1762490834448,2.99643424,3337.3,3337.2,0.4927]
[1762490834793,2.99643424,3337.3,3336.5,2.99712883]
[1762490834794,4.25641934,3337.0,3336.4,0.6975]
[1762490834950,4.25641934,3337.0,3336.4,1.38663658]
[1762490835155,4.25641934,3337.0,3336.4,4.38382067]
[1762490835579,4.25633426,3337.1,3336.5,2.99713252]
[1762490835770,2.99670362,3337.0,3336.4,0.1981]
[1762490836157,0.4911,3337.3,3336.4,0.1981]
[1762490836158,2.99679809,3336.9,3336.4,0.1981]
[1762490836992,2.99679809,3336.9,3336.4,0.6975]
[1762490837187,3.49124239,3337.1,3336.4,0.6975]
[1762490837480,1.259712,3336.8,3336.4,0.1981]
[1762490838085,4.25643118,3337.0,3336.4,3.6947297]
[1762490838980,1.259712,3336.8,3336.4,0.6975]
[1762490840283,1.259712,3336.8,3336.7,0.4927]
[1762490840652,1.259712,3336.8,3336.4,3.19532972]
[1762490841070,1.259712,3336.8,3336.4,0.1981]
[1762490842187,2.99690325,3336.8,3336.4,0.1981]
[1762490842782,0.1496,3336.7,3336.4,0.1981]
[1762490844193,0.1496,3336.7,3336.2,3.49678288]
[1762490844774,0.1496,3336.7,3336.2,4.1810901]
[1762490844970,0.1496,3336.7,3336.3,2.99732154]
[1762490845287,0.1496,3336.7,3336.3,3.49672154]
[1762490846193,0.1496,3336.7,3336.3,0.4994]
[1762490847191,0.1496,3336.7,3336.2,3.68171472]
[1762490847400,0.1496,3336.7,3336.2,4.18111472]
[1762490847773,0.1496,3336.7,3336.2,3.68171472]
[1762490847972,0.1496,3336.7,3336.3,0.4994]
[1762490848497,0.1496,3336.7,3336.6,0.4927]
[1762490848990,0.1496,3336.7,3336.3,3.49670627]
[1762490849193,0.4936,3336.7,3336.2,3.68169142]
[1762490849395,0.4936,3336.7,3336.3,2.9973186]
[1762490849582,0.4936,3336.7,3336.3,3.4967186]
[1762490850185,0.4936,3336.7,3336.3,0.4994]
[1762490850584,0.4936,3336.7,3336.4,0.4994]
[1762490851297,4.75034527,3336.7,3336.2,0.68430722]
[1762490851499,2.99711484,3336.6,3336.1,0.3487]
[1762490851697,2.99711484,3336.6,3336.1,0.1991]
[1762490851881,1.259712,3336.4,3336.1,0.1991]
[1762490852093,1.409312,3336.5,3336.1,0.1991]
[1762490852588,4.40650594,3336.5,3336.1,0.1991]
[1762490852998,4.40650594,3336.5,3336.1,0.6985]
[1762490853202,0.3455,3336.2,3336.1,0.001]
[1762490853401,4.60263421,3336.2,3336.1,0.001]
[1762490853610,5.09233421,3336.2,3336.1,0.001]
[1762490854715,2.094912,3336.2,3336.1,0.001]
[1762490855002,1.605212,3336.2,3336.1,0.001]
[1762490856099,4.60263421,3336.2,3336.1,0.001]
[1762490857180,5.09233421,3336.2,3336.1,0.001]
[1762490857768,4.60263421,3336.2,3336.1,0.001]
[1762490858268,5.09233421,3336.2,3336.1,0.001]
[1762490858702,5.49783821,3336.2,3336.1,0.001]
[1762490867532,5.00813821,3336.2,3336.1,0.001]
[1762490867696,5.48983821,3336.2,3336.1,0.001]
[1762490871634,5.00813821,3336.2,3336.1,0.001]
[1762490871840,5.49183821,3336.2,3336.1,0.001]
[1762490876241,5.91342952,3336.2,3336.1,0.001]
[1762490877455,5.96198695,3336.2,3336.1,0.001]
[1762490878445,10.17683865,3336.2,3336.1,0.001]
[1762490880934,9.70668991,3336.2,3336.1,0.001]
[1762490881321,9.70668991,3336.2,3333.1,0.001]
[1762490881322,2.9990403,3334.4,3333.1,0.001]
[1762490881653,2.9990403,3334.4,3334.3,0.663]
[1762490881842,2.9990403,3334.4,3334.3,1.1463]
[1762490882458,1.259712,3334.5,3334.3,1.1463]
[1762490882660,4.25871414,3334.5,3334.4,0.47]
[1762490882949,4.25871414,3334.5,3334.4,0.9533]
[1762490886192,4.25871414,3334.5,3334.4,0.4833]
[1762490888696,4.25920208,3333.9,3333.8,0.001]
[1762490889591,4.62050208,3333.9,3333.8,0.001]
[1762490889981,5.10100208,3333.9,3333.8,0.001]
[1762490890830,5.57140304,3333.9,3333.8,0.001]
[1762490891133,5.09090304,3333.9,3333.8,0.001]
[1762490891339,5.54800304,3333.9,3333.8,0.001]
[1762490891818,5.09090304,3333.9,3333.8,0.001]
[1762490892690,5.54800304,3333.9,3333.8,0.001]
[1762490893318,5.95350704,3333.9,3333.8,0.001]
[1762490896116,5.48310608,3333.9,3333.8,0.001]
[1762490896519,5.02600608,3333.9,3333.8,0.001]
[1762490905479,0.1201784,3334.6,3333.8,0.9708]
[1762490905624,4.2168517,3335.4,3333.9,2.99949008]
[1762490905950,0.1496,3334.4,3334.0,0.029994]
[1762490906148,2.9987139,3334.8,3333.8,0.1506]
[1762490906149,4.2148517,3334.8,3333.8,0.001]
[1762490906339,2.99887634,3334.6,3334.3,0.167]
[1762490906660,1.259712,3334.4,3334.3,0.167]
[1762490907040,1.259712,3334.4,3334.3,0.6529]
[1762490907438,1.409312,3334.5,3334.3,1.1368]
[1762490907769,0.1496,3334.5,3334.4,0.9698]
[1762490908830,0.1496,3334.8,3334.5,2.99893634]
[1762490908983,0.1496,3334.8,3334.5,0.4839]
[1762490909190,0.1496,3334.8,3334.7,0.4859]
[1762490909366,1.409312,3334.8,3334.7,0.4859]
[1762490909565,0.1496,3334.8,3334.7,0.9698]
[1762490909957,1.409312,3334.8,3334.7,0.9698]
[1762490910250,0.1496,3334.8,3334.7,0.9698]
[1762490912603,0.1496,3334.8,3334.7,3.9685705]
[1762490912922,0.002,3335.4,3334.7,4.36543554]
[1762490913079,1.261712,3335.4,3335.3,0.6808]
[1762490913279,0.002,3335.4,3335.3,0.6808]
[1762490913507,0.002,3335.4,3335.3,1.1647]
[1762490913914,0.002,3335.4,3335.3,4.19291335]
[1762490914115,0.002,3335.4,3335.3,4.93152753]
[1762490914604,0.002,3335.4,3335.3,4.90154522]
[1762490915872,0.002,3335.4,3335.3,4.93152753]
[1762490916074,0.002,3335.4,3335.3,4.90154522]
[1762490917108,0.002,3335.4,3335.3,4.93152753]
[1762490917478,0.002,3335.4,3334.7,0.88077486]
[1762490917479,0.2109,3335.4,3334.7,0.88077486]
[1762490917809,4.25809853,3335.2,3334.5,3.48279475]
[1762490918318,0.002,3335.4,3335.1,0.4859]
[1762490918476,1.259712,3335.3,3335.2,0.453]
[1762490919526,0.002,3335.4,3335.2,0.453]
[1762490919688,0.002,3335.4,3335.3,0.453]
[1762490921197,0.002,3335.4,3334.5,0.4797]
[1762490921198,1.259712,3335.0,3334.5,0.4797]
[1762490921502,4.26183477,3335.2,3334.6,2.9988481]
[1762490921729,4.25803477,3335.2,3334.6,2.9988481]
[1762490921929,4.25803477,3335.2,3334.6,3.4785481]
[1762490922129,4.25803477,3335.2,3334.6,0.4797]
[1762490922296,4.25803477,3335.2,3334.6,3.47851382]
[1762490922497,1.259712,3335.2,3334.6,0.4797]
[1762490922719,1.259712,3335.2,3335.1,0.4859]
[1762490924035,0.002,3335.4,3335.1,4.14845656]
[1762490924196,0.1496,3335.3,3335.2,2.99832094]
[1762490924392,0.1496,3335.3,3335.2,3.47802094]
[1762490924594,0.1496,3335.3,3335.2,3.96392094]
[1762490924930,0.002,3335.4,3335.3,2.99823104]
[1762490925132,0.002,3335.4,3335.3,3.99381335]
[1762490925820,0.002,3335.4,3335.3,4.69646141]
[1762490926132,0.002,3335.4,3335.3,4.84606141]
[1762490941544,0.002,3335.4,3335.3,4.84706141]
[1762490942073,0.002,3335.4,3335.3,0.1506]
[1762490942378,0.363,3335.4,3335.3,0.001]
[1762490943299,0.002,3335.4,3335.3,3.96483104]
[1762490944597,0.002,3335.4,3335.3,0.4869]
[1762490944997,0.002,3335.4,3335.3,3.96483104]
[1762490945193,0.002,3335.4,3335.3,0.4869]
[1762490945398,0.002,3335.4,3335.3,3.48513104]
[1762490946198,0.8416,3335.4,3335.3,0.001]
[1762490946425,0.363,3335.4,3335.3,0.001]
[1762490946562,0.002,3335.4,3335.3,0.001]
[1762490947398,0.002,3335.4,3335.3,2.99923104]
[1762490947762,0.3642,3335.4,3335.3,0.001]
[1762490948174,0.3642,3335.4,3335.3,2.99923104]
[1762490948376,0.002,3335.4,3335.3,3.48513104]
[1762490948559,0.002,3335.4,3335.3,4.64659383]
[1762490948982,0.002,3335.4,3335.3,4.79619383]
[1762490950242,0.002,3335.8,3335.7,2.99787151]
[1762490950534,0.002,3336.1,3336.0,2.99760191]
[1762490950707,0.002,3336.1,3336.0,8.58402647]
[1762490951028,0.002,3336.1,3336.0,9.05432647]
[1762490951191,0.002,3336.1,3336.0,0.603]
[1762490951397,0.8238,3336.1,3335.4,2.99805206]
[1762490951634,0.8238,3336.1,3335.7,3.14747073]
[1762490951803,0.8238,3336.1,3335.8,2.99777055]
[1762490952134,0.0048,3335.8,3335.3,0.001]
[1762490952298,0.3332,3335.7,3335.5,2.99799075]
[1762490952493,0.1936,3335.9,3335.6,0.4534]
[1762490952732,0.1936,3335.9,3335.5,2.9980377]
[1762490952924,0.6789,3335.9,3335.5,2.9980377]
[1762490953198,0.6789,3335.9,3335.5,2.99804066]
[1762490953825,0.1936,3335.9,3335.6,2.99795214]
[1762490955034,0.1936,3335.9,3335.5,2.99804733]
[1762490956822,0.1496,3336.0,3335.6,2.99790036]
[1762490957540,0.6349,3336.0,3335.6,2.99790036]
[1762490958039,0.002,3335.9,3335.5,2.99801346]
[1762490958838,0.002,3335.9,3335.6,2.99795882]
[1762490959337,0.002,3335.9,3335.5,2.99801505]
[1762490959503,0.4873,3335.9,3335.5,2.99801505]
[1762490961108,0.6809,3335.9,3335.4,0.1496]
[1762490961448,0.6809,3335.9,3335.4,3.14768439]
[1762490961646,0.6809,3335.9,3335.5,2.99804919]
[1762490962005,0.6809,3335.9,3335.4,3.14771469]
[1762490962223,0.4853,3335.8,3335.4,3.14771469]
[1762490962438,0.4853,3335.8,3335.5,2.99804286]
[1762490963110,0.4853,3335.8,3335.4,3.14773574]
[1762490963612,0.4853,3335.8,3335.4,0.1496]
[1762490964144,0.4853,3335.8,3335.4,3.14773915]
[1762490964964,0.3383,3335.5,3335.3,0.001]
[1762490965120,0.0048,3335.4,3335.3,0.001]
[1762490966202,0.4901,3335.4,3335.3,0.001]
[1762490967184,3.48824115,3335.4,3335.3,0.001]
[1762490967346,0.4901,3335.4,3335.3,0.001]
[1762490969302,0.1496,3335.5,3335.3,0.4544]
[1762490969599,0.1496,3335.5,3335.3,0.001]
[1762490969771,1.409312,3335.5,3335.3,0.001]
[1762490969973,0.3383,3335.4,3335.3,0.001]
[1762490971682,0.8221,3335.4,3335.3,0.001]
[1762490972374,3.82024115,3335.4,3335.3,0.001]
[1762490972798,0.8221,3335.4,3335.3,0.001]
[1762490976106,4.25777019,3335.5,3335.3,0.001]
[1762490976308,0.3383,3335.4,3335.3,0.001]
[1762490976519,3.82024115,3335.4,3335.3,0.001]
[1762490976689,0.8221,3335.4,3335.3,0.001]
[1762490976889,3.82024115,3335.4,3335.3,0.001]
[1762490977772,5.48545715,3335.4,3335.3,0.001]
[1762490981189,2.99850074,3335.0,3334.9,0.001]
[1762490981420,8.88261538,3335.0,3334.9,0.001]
[1762490981719,9.76640669,3335.0,3334.9,0.001]
[1762490981924,3.4042745,3334.7,3334.6,0.001]
[1762490982220,9.23438514,3334.7,3334.6,0.001]
[1762490982391,9.69538514,3334.7,3334.6,0.001]
[1762490982593,2.99949008,3333.9,3333.8,0.001]
[1762490982799,4.46240208,3333.9,3333.8,0.001]
[1762490982995,5.33010608,3333.9,3333.8,0.001]
[1762490986508,4.25920208,3333.9,3333.8,0.4811]
[1762490987135,4.25920208,3333.9,3333.8,0.001]
[1762490987354,4.61190208,3333.9,3333.8,0.001]
[1762490988040,4.25920208,3333.9,3333.8,0.001]
[1762490988242,4.25920208,3333.9,3333.8,0.4811]
[1762490989244,1.409312,3333.9,3333.8,0.9456]
[1762490990435,1.259712,3333.9,3333.8,0.9456]
[1762490990634,1.259712,3333.9,3333.8,1.35529788]
[1762490990835,1.259712,3333.9,3333.8,0.41069788]
[1762490991038,1.259712,3333.9,3333.8,0.4811]
[1762490992846,1.259712,3333.9,3333.8,0.9456]
[1762490993950,2.99863075,3334.9,3333.8,0.9456]
[1762490993951,0.1496,3334.3,3333.8,1.0952]
[1762490994105,0.1496,3334.3,3333.9,0.5100949]
[1762490994311,1.259712,3334.5,3333.8,0.4655]
[1762490994312,1.259712,3334.4,3333.8,0.4655]
[1762490994510,1.259712,3334.6,3334.3,0.675]
[1762490994733,0.1986,3334.9,3334.3,0.675]
[1762490994734,2.99895036,3334.5,3334.4,0.4801]
[1762490995446,1.259712,3334.1,3333.8,0.001]
[1762490995621,4.26358968,3334.2,3333.8,0.001]
[1762490995822,4.25898968,3334.2,3333.8,0.001]
[1762490996148,2.99937096,3334.1,3333.8,0.001]
[1762490997542,4.72115167,3334.2,3333.8,0.001]
[1762490997861,3.46143967,3334.2,3333.8,0.001]
[1762490998067,2.99923967,3334.2,3333.8,0.001]
[1762490998343,1.259712,3334.4,3334.1,0.675]
[1762490998643,2.99932067,3334.1,3333.8,0.4655]
[1762490999250,2.99925069,3334.2,3333.8,0.4655]
[1762490999751,1.259712,3334.1,3333.8,0.4655]
[1762491000164,1.259712,3334.1,3333.8,0.001]
[1762491000165,2.99936763,3334.1,3333.8,0.001]
[1762491000326,1.259712,3334.6,3333.8,0.001]
[1762491000532,2.99936043,3334.1,3333.8,0.001]
[1762491000918,2.99929081,3334.2,3333.8,0.001]
[1762491001124,2.99931641,3334.1,3333.8,0.001]
[1762491001856,2.99940238,3334.0,3333.8,0.001]
[1762491002160,2.99938072,3334.1,3333.8,0.001]
[1762491002356,0.3527,3333.9,3333.8,0.001]
[1762491002559,2.99934598,3334.1,3333.8,0.001]
[1762491002859,1.259712,3334.2,3334.1,0.675]
[1762491003060,1.259712,3334.3,3334.1,1.1395]
[1762491003359,1.259712,3334.3,3334.1,0.6594]
[1762491003534,1.259712,3334.3,3334.2,0.4801]
[1762491004020,4.25884225,3334.3,3334.2,0.4801]
[1762491004221,4.40844225,3334.3,3334.2,0.4801]
[1762491004646,1.409312,3334.3,3334.2,0.4801]
[1762491005033,4.40844225,3334.3,3334.2,0.4801]
[1762491005351,1.259712,3334.2,3333.9,0.1949]
[1762491005856,1.259712,3334.2,3334.1,0.4801]
[1762491006439,0.1496,3334.3,3334.1,0.4801]
[1762491006647,0.1496,3334.3,3334.2,0.4801]
[1762491006851,0.1496,3334.3,3334.2,0.9446]
[1762491007622,0.6608,3334.9,3334.2,0.9446]
[1762491007623,1.920512,3334.9,3334.2,0.9446]
[1762491007848,1.920512,3334.9,3334.3,0.4645]
[1762491007849,0.1496,3334.6,3334.3,0.4645]
[1762491008157,0.1496,3334.6,3334.3,1.12576921]
[1762491008459,0.1496,3334.6,3334.5,0.4801]
[1762491008664,1.259712,3335.2,3334.6,2.99886043]
[1762491008861,2.99850074,3335.0,3334.9,0.4801]
[1762491009156,0.1496,3334.9,3334.3,0.6141]
[1762491009345,3.00241343,3334.6,3334.0,0.4645]
[1762491009555,3.00241343,3334.6,3334.1,0.1496]
[1762491010022,3.00241343,3334.6,3334.1,0.6141]
[1762491010961,2.9990495,3334.4,3333.9,0.1949]
[1762491011135,0.44985495,3334.4,3333.8,0.1506]
[1762491011339,0.4752,3334.0,3333.8,0.001]
[1762491013319,3.14883275,3334.2,3333.8,0.001]
[1762491013742,3.62973275,3334.2,3333.8,0.001]
[1762491014264,0.4809,3334.2,3333.8,0.001]
[1762491014429,0.1496,3334.0,3333.8,0.001]
[1762491014761,0.3342,3333.9,3333.8,0.001]
[1762491014921,3.33369008,3333.9,3333.8,0.001]
[1762491015124,4.00059008,3333.9,3333.8,0.001]
[1762491016071,5.26030208,3333.9,3333.8,0.001]
[1762491016238,2.260812,3333.9,3333.8,0.001]
[1762491016427,5.26030208,3333.9,3333.8,0.001]
[1762491017075,4.77940208,3333.9,3333.8,0.001]
[1762491017240,4.59340208,3333.9,3333.8,0.001]
[1762491018423,1.259712,3333.9,3333.8,0.4623]
[1762491018864,0.186,3334.9,3333.8,1.1081]
[1762491019036,0.1496,3334.2,3333.9,0.4613]
[1762491019362,4.25920208,3333.9,3333.8,0.001]
[1762491019665,5.09930208,3333.9,3333.8,0.001]
[1762491023344,4.25920208,3333.9,3333.8,0.001]
[1762491023670,4.61960208,3333.9,3333.8,0.001]
[1762491024667,1.620112,3333.9,3333.8,0.001]
[1762491024834,1.259712,3333.9,3333.8,0.9585]
[1762491025353,0.42159131,3335.2,3333.8,3.95802762]
[1762491025557,0.4829,3335.0,3334.0,0.4613]
[1762491025758,1.259712,3334.4,3334.1,0.0299931]
[1762491026067,2.9987705,3334.7,3333.8,0.001]
[1762491026268,1.259712,3334.4,3333.8,0.001]
[1762491026446,1.259712,3334.4,3333.9,2.99948874]
[1762491026647,1.259712,3334.4,3333.9,3.49568874]
[1762491026941,1.259712,3334.4,3334.0,0.4962]
[1762491028165,0.002,3334.6,3334.3,0.4613]
[1762491028369,0.002,3334.6,3334.4,0.4613]
[1762491028569,0.002,3334.6,3334.5,0.4613]
[1762491029066,1.259712,3334.4,3334.2,0.4962]
[1762491029271,0.1496,3334.4,3334.2,0.4962]
[1762491029472,0.3592,3334.3,3333.8,0.6468]
[1762491029671,0.3592,3334.3,3333.8,3.64636862]
[1762491029868,2.99932522,3334.1,3333.8,0.001]
[1762491030375,0.1496,3334.2,3333.8,0.001]
[1762491030878,0.1496,3333.9,3333.8,0.001]
[1762491031174,3.62429008,3333.9,3333.8,0.001]
[1762491033438,0.6248,3333.9,3333.8,0.001]
[1762491034078,3.62429008,3333.9,3333.8,0.001]
[1762491034283,4.88400208,3333.9,3333.8,0.001]
[1762491035180,5.50369375,3333.9,3333.8,0.001]
[1762491035352,5.24880208,3333.9,3333.8,0.001]
[1762491038387,9.57615803,3333.9,3333.8,0.001]
[1762491042178,5.24880208,3333.9,3333.8,0.001]
[1762491043562,5.65430608,3333.9,3333.8,0.001]
[1762491047487,5.77450543,3333.9,3333.8,0.001]
[1762491048892,4.85460143,3333.9,3333.8,0.001]
[1762491049099,1.259712,3333.9,3333.8,0.9524]
[1762491049302,2.99904161,3334.4,3333.8,0.9524]
[1762491049502,2.99895036,3334.5,3334.3,0.6757]
[1762491049677,0.002,3334.6,3334.5,0.4884]